fUSD/lending_fUSD_20240615
["ID","MTS","AMOUNT","RATE_DAILY","PERIOD"]
[329520256,1718412700473,-500.0,0.00023561,3]
[329520257,1718412700507,-500.0,0.00023561,3]
[329520258,1718412700532,-612.35,0.00023561,3]
[329520259,1718412700555,-416.76,0.00023561,3]
[329520260,1718412700596,-500.0,0.00023561,3]
[329520261,1718412700612,-406.69227799,0.00023561,3]
[329520262,1718412700633,-1630.03,0.00023561,3]
[329520263,1718412700649,-174.82,0.00023561,3]
[329520264,1718412700676,-612.08031142,0.00023561,3]
[329520265,1718412700707,-500.0,0.00023561,3]
[329520266,1718412700756,-500.0,0.00023561,3]
[329520267,1718412700792,-500.0,0.00023561,3]
[329520268,1718412700844,-704.79,0.00023561,3]
[329520269,1718412700857,-302.24,0.00023561,3]
[329520270,1718412700882,-500.0,0.00023561,3]
[329520271,1718412700932,-500.0,0.00023561,3]
[329520272,1718412700961,-500.0,0.00023561,3]
[329520273,1718412700980,-496.37,0.00023561,3]
[329520274,1718412701032,-500.0,0.00023561,3]
[329520275,1718412701078,-500.0,0.00023561,3]
[329520276,1718412701095,-500.0,0.00023561,3]
[329520277,1718412701110,-519.91,0.00023561,3]
[329520278,1718412701128,-562.19,0.00023561,3]
[329520279,1718412701142,-528.56,0.00023561,3]
[329520280,1718412701164,-586.94,0.00023561,3]
[329520281,1718412701178,-500.0,0.00023561,3]
[329520282,1718412701192,-500.0,0.00023561,3]
[329520283,1718412701221,-500.0,0.00023561,3]
[329520284,1718412701239,-618.1,0.00023561,3]
[329520285,1718412701253,-1018.16,0.00023561,3]
[329520286,1718412701273,-500.0,0.00023561,3]
[329520287,1718412701296,-500.0,0.00023561,3]
[329520288,1718412701317,-500.0,0.00023561,3]
[329520289,1718412701341,-500.0,0.00023561,3]
[329520290,1718412701352,-589.32,0.00023561,3]
[329520291,1718412701373,-500.0,0.00023561,3]
[329520292,1718412701386,-1610.28,0.00023561,3]
[329520293,1718412701401,-500.0,0.00023561,3]
[329520294,1718412701413,-150.0,0.00023769,2]
[329520295,1718412701440,-155.0,0.000238,2]
[329520296,1718412701453,-1103.28,0.000238,2]
[329520297,1718412701484,-396.97,0.00023819,2]
[329520298,1718412701510,-475.78,0.00023833,3]
[329520299,1718412701528,-500.0,0.00023833,3]
[329520300,1718412701584,-500.0,0.00023833,3]
[329520301,1718412701608,-264.46,0.00023833,3]
[329520302,1718412701656,-257.98,0.00023833,3]
[329520303,1718412701684,-500.0,0.00023833,3]
[329520304,1718412701704,-363.65,0.00023833,3]
[329520305,1718412701772,-213.47,0.00023833,3]
[329520306,1718412701783,-500.0,0.00023833,3]
[329520307,1718412701812,-500.0,0.00023833,3]
[329520308,1718412701860,-394.55838166,0.00023833,3]
[329520309,1718412701883,-500.0,0.00023833,3]
[329520310,1718412701908,-500.0,0.00023833,3]
[329520311,1718412701952,-500.0,0.00023833,3]
[329520312,1718412701992,-500.0,0.00023833,3]
[329520313,1718412702018,-500.0,0.00023833,3]
[329520314,1718412702032,-500.0,0.00023833,3]
[329520315,1718412702061,-160.76953472,0.00023833,3]
[329520316,1718412702093,-500.0,0.00023833,3]
[329520317,1718412702105,-500.0,0.00023833,3]
[329520318,1718412702136,-500.0,0.00023833,3]
[329520319,1718412702147,-500.0,0.00023833,3]
[329520320,1718412702205,-500.0,0.00023833,3]
[329520321,1718412702219,-560.32112734,0.00023833,3]
[329520322,1718412702234,-264.67241099,0.00023833,3]
[329520323,1718412702250,-500.0,0.00023833,3]
[329520324,1718412702316,-505.03917036,0.00023833,3]
[329520325,1718412702341,-500.0,0.00023833,3]
[329520326,1718412702380,-487.16559251,0.00023833,3]
[329520327,1718412702399,-500.0,0.00023833,3]
[329520328,1718412702424,-514.19746916,0.00023833,3]
[329520329,1718412702445,-500.0,0.00023833,3]
[329520330,1718412702475,-500.0,0.00023833,3]
[329520331,1718412702501,-603.39,0.00023833,3]
[329520332,1718412702555,-500.0,0.00023833,3]
[329520333,1718412702566,-500.0,0.00023833,3]
[329520334,1718412702590,-248.62885997,0.00023833,3]
[329520335,1718412702607,-500.0,0.00023834,3]
[329520336,1718412702621,-500.0,0.00023835,3]
[329520337,1718412702671,-500.0,0.00023835,3]
[329520338,1718412702705,-500.0,0.00023835,3]
[329520339,1718412702776,-454.42152228,0.00023835,3]
[329520340,1718412702798,-500.0,0.00023835,3]
[329520341,1718412702818,-500.0,0.00023835,3]
[329520342,1718412702830,-1622.23,0.00023835,3]
[329520343,1718412702848,-500.0,0.00023835,3]
[329520344,1718412702862,-500.0,0.00023835,3]
[329520345,1718412702920,-500.0,0.00023835,3]
[329520346,1718412702965,-1512.33,0.00023835,3]
[329520347,1718412702996,-500.0,0.00023835,3]
[329520348,1718412703065,-332.05,0.00023835,3]
[329520349,1718412703107,-500.0,0.00023835,3]
[329520350,1718412703132,-500.0,0.00023835,3]
[329520351,1718412703153,-500.0,0.00023835,3]
[329520352,1718412703180,-500.0,0.00023835,3]
[329520353,1718412703193,-500.0,0.00023835,3]
[329520354,1718412703216,-500.0,0.00023835,3]
[329520355,1718412703240,-500.0,0.00023835,3]
[329520356,1718412703253,-500.0,0.00023835,3]
[329520357,1718412703268,-500.0,0.00023835,3]
[329520358,1718412703324,-612.35,0.00023835,3]
[329520359,1718412703361,-500.0,0.00023835,3]
[329520360,1718412703371,-1630.03,0.00023835,3]
[329520361,1718412703382,-500.0,0.00023835,3]
[329520362,1718412703394,-500.0,0.00023835,3]
[329520363,1718412703406,-500.0,0.00023835,3]
[329520364,1718412703418,-704.79,0.00023835,3]
[329520365,1718412703440,-500.0,0.00023835,3]
[329520366,1718412703468,-500.0,0.00023835,3]
[329520367,1718412703498,-500.0,0.00023835,3]
[329520368,1718412703528,-500.0,0.00023835,3]
[329520369,1718412703541,-500.0,0.00023835,3]
[329520370,1718412703557,-454.53,0.00023835,3]
[329520371,1718412703580,-519.91,0.00023835,3]
[329520372,1718412703636,-562.19,0.00023835,3]
[329520373,1718412703663,-528.56,0.00023835,3]
[329520374,1718412703675,-586.94,0.00023835,3]
[329520375,1718412703702,-500.0,0.00023835,3]
[329520376,1718412703714,-500.0,0.00023835,3]
[329520377,1718412703726,-500.0,0.00023835,3]
[329520378,1718412703752,-1018.16,0.00023835,3]
[329520379,1718412703793,-500.0,0.00023835,3]
[329520380,1718412703819,-626.38767587,0.00023835,3]
[329520381,1718412703849,-500.0,0.00023835,3]
[329520382,1718412703860,-648.49,0.00023835,3]
[329520383,1718412703878,-589.32,0.00023835,3]
[329520384,1718412703893,-500.0,0.00023835,3]
[329520385,1718412703909,-1610.28,0.00023835,3]
[329520386,1718412703942,-500.0,0.00023835,3]
[329520387,1718412703969,-1564.04996232,0.00023868,2]
[329520388,1718412703980,-30053.64287967,0.00023879,2]
[329520389,1718412703993,-24663.53160466,0.0002388,2]
[329520390,1718412704004,-5983.08124322,0.00023996,2]
[329520391,1718412704015,-1325.88313213,0.00024018,2]
[329520392,1718412704029,-1325.88313213,0.00024058,2]
[329520393,1718412704062,-152.89017849,0.00024066,2]
[329520394,1718412704127,-151.01910573,0.0002408,2]
[329520395,1718412704324,-1001.7931147,0.0002408,2]
[329520396,1718412704337,-1325.88313213,0.00024081,2]
[329520397,1718412704383,-33627.97803897,0.0002409,2]
[329520398,1718412704422,-2058.7735572,0.000241,2]
[329520399,1718412704433,-500.0,0.00024107,3]
[329520400,1718412704446,-517.54,0.00024107,3]
[329520401,1718412704493,-500.0,0.00024107,3]
[329520402,1718412704508,-649.83,0.00024107,3]
[329520403,1718412704521,-500.0,0.00024107,3]
[329520404,1718412704533,-500.0,0.00024107,3]
[329520405,1718412704545,-500.0,0.00024107,3]
[329520406,1718412704566,-166.97,0.00024107,3]
[329520407,1718412704577,-500.0,0.00024107,3]
[329520408,1718412704588,-500.0,0.00024107,3]
[329520409,1718412704600,-613.5,0.00024107,3]
[329520410,1718412704612,-500.0,0.00024107,3]
[329520411,1718412704630,-180.81919405,0.00024107,3]
[329520412,1718412704668,-500.0,0.00024107,3]
[329520413,1718412704686,-500.0,0.00024107,3]
[329520414,1718412704701,-500.0,0.00024107,3]
[329520415,1718412704764,-500.0,0.00024107,3]
[329520416,1718412704776,-500.0,0.00024107,3]
[329520417,1718412704788,-500.0,0.00024107,3]
[329520418,1718412704799,-500.0,0.00024107,3]
[329520419,1718412704827,-500.0,0.00024107,3]
[329520420,1718412704848,-500.0,0.00024107,3]
[329520421,1718412704859,-500.0,0.00024107,3]
[329520422,1718412704890,-506.86183856,0.00024108,3]
[329520423,1718412704905,-500.0,0.00024109,3]
[329520424,1718412704971,-500.0,0.00024109,3]
[329520425,1718412704996,-250.69,0.00024109,3]
[329520426,1718412705079,-216.55,0.00024109,3]
[329520427,1718412705116,-500.0,0.00024109,3]
[329520428,1718412705129,-1622.23,0.00024109,3]
[329520429,1718412705142,-500.0,0.00024109,3]
[329520430,1718412705162,-500.0,0.00024109,3]
[329520431,1718412705188,-500.0,0.00024109,3]
[329520432,1718412705222,-1512.33,0.00024109,3]
[329520433,1718412705245,-500.0,0.00024109,3]
[329520434,1718412705258,-500.0,0.00024109,3]
[329520435,1718412705271,-500.0,0.00024109,3]
[329520436,1718412705286,-216.25,0.00024109,3]
[329520437,1718412705316,-500.0,0.00024109,3]
[329520438,1718412705336,-500.0,0.00024109,3]
[329520439,1718412705424,-611.41,0.00024109,3]
[329520440,1718412705499,-500.0,0.00024109,3]
[329520441,1718412705528,-159.61426087,0.00024109,3]
[329520442,1718412705550,-500.0,0.00024109,3]
[329520443,1718412705563,-612.35,0.00024109,3]
[329520444,1718412705585,-500.0,0.00024109,3]
[329520445,1718412705616,-1630.03,0.00024109,3]
[329520446,1718412705627,-500.0,0.00024109,3]
[329520447,1718412705650,-500.0,0.00024109,3]
[329520448,1718412705675,-500.0,0.00024109,3]
[329520449,1718412705686,-704.79,0.00024109,3]
[329520450,1718412705698,-502.61,0.00024109,3]
[329520451,1718412705714,-500.0,0.00024109,3]
[329520452,1718412705726,-500.0,0.00024109,3]
[329520453,1718412705746,-403.05270047,0.00024109,3]
[329520454,1718412705758,-500.0,0.00024109,3]
[329520455,1718412705772,-519.91,0.00024109,3]
[329520456,1718412705840,-562.19,0.00024109,3]
[329520457,1718412705911,-528.56,0.00024109,3]
[329520458,1718412705943,-586.94,0.00024109,3]
[329520459,1718412705955,-500.0,0.00024109,3]
[329520460,1718412705991,-500.0,0.00024109,3]
[329520461,1718412706040,-500.0,0.00024109,3]
[329520462,1718412706054,-1018.16,0.00024109,3]
[329520463,1718412706066,-500.0,0.00024109,3]
[329520464,1718412706099,-500.0,0.00024109,3]
[329520465,1718412706127,-589.32,0.00024109,3]
[329520466,1718412706152,-287.59744031,0.00024109,3]
[329520467,1718412706192,-1610.28,0.00024109,3]
[329520468,1718412706216,-357.56206506,0.00024177,2]
[329520469,1718412706227,-165.4093236,0.00024204,2]
[329520470,1718412706252,-382.94746261,0.00024228,2]
[329520471,1718412706269,-180.0,0.0002423,2]
[329520472,1718412706280,-1325.88313213,0.00024262,2]
[329520473,1718412706292,-208889.013082,0.000243,2]
[329520474,1718412706303,-997.7,0.000243,2]
[329520475,1718412706349,-309.12,0.000243,2]
[329520476,1718412706360,-153.69627146,0.00024311,2]
[329520477,1718412706372,-150.0,0.00024322,2]
[329520478,1718412706386,-152.06773047,0.00024335,2]
[329520479,1718412706400,-151.21954677,0.00024343,2]
[329520480,1718412706413,-155.64077264,0.00024354,2]
[329520481,1718412706430,-500.0,0.00024381,3]
[329520482,1718412706441,-500.0,0.00024381,3]
[329520483,1718412706452,-361.48,0.00024381,3]
[329520484,1718412706473,-215.55459458,0.00024381,3]
[329520485,1718412706490,-500.0,0.00024381,3]
[329520486,1718412706511,-500.0,0.00024381,3]
[329520487,1718412706570,-500.0,0.00024381,3]
[329520488,1718412706644,-574.99488132,0.00024381,3]
[329520489,1718412706672,-500.0,0.00024381,3]
[329520490,1718412706691,-500.0,0.00024381,3]
[329520491,1718412706703,-500.0,0.00024381,3]
[329520492,1718412706713,-182.86931575,0.00024381,3]
[329520493,1718412706768,-500.0,0.00024381,3]
[329520494,1718412706806,-500.0,0.00024381,3]
[329520495,1718412706818,-500.0,0.00024381,3]
[329520496,1718412706839,-500.0,0.00024381,3]
[329520497,1718412706851,-500.0,0.00024381,3]
[329520498,1718412706872,-500.0,0.00024381,3]
[329520499,1718412706908,-500.0,0.00024383,3]
[329520500,1718412706925,-249.87043934,0.00024383,3]
[329520501,1718412706939,-521.93,0.00024383,3]
[329520502,1718412706960,-1622.23,0.00024383,3]
[329520503,1718412707044,-500.0,0.00024383,3]
[329520504,1718412707065,-500.0,0.00024383,3]
[329520505,1718412707081,-550.28870912,0.00024383,3]
[329520506,1718412707108,-1512.33,0.00024383,3]
[329520507,1718412707124,-585.85200704,0.00024383,3]
[329520508,1718412707160,-500.0,0.00024383,3]
[329520509,1718412707190,-500.0,0.00024383,3]
[329520510,1718412707278,-500.0,0.00024383,3]
[329520511,1718412707306,-266.72426081,0.00024383,3]
[329520512,1718412707319,-500.0,0.00024383,3]
[329520513,1718412707349,-500.0,0.00024383,3]
[329520514,1718412707382,-612.35,0.00024383,3]
[329520515,1718412707409,-500.0,0.00024383,3]
[329520516,1718412707429,-1630.03,0.00024383,3]
[329520517,1718412707444,-527.71,0.00024383,3]
[329520518,1718412707455,-500.0,0.00024383,3]
[329520519,1718412707475,-500.0,0.00024383,3]
[329520520,1718412707492,-704.79,0.00024383,3]
[329520521,1718412707510,-500.0,0.00024383,3]
[329520522,1718412707544,-500.0,0.00024383,3]
[329520523,1718412707556,-500.0,0.00024383,3]
[329520524,1718412707568,-519.91,0.00024383,3]
[329520525,1718412707591,-562.19,0.00024383,3]
[329520526,1718412707606,-528.56,0.00024383,3]
[329520527,1718412707617,-500.0,0.00024383,3]
[329520528,1718412707642,-586.94,0.00024383,3]
[329520529,1718412707664,-500.0,0.00024383,3]
[329520530,1718412707689,-500.0,0.00024383,3]
[329520531,1718412707709,-1018.16,0.00024383,3]
[329520532,1718412707772,-500.0,0.00024383,3]
[329520533,1718412707818,-500.0,0.00024383,3]
[329520534,1718412707866,-589.32,0.00024383,3]
[329520535,1718412707879,-1610.28,0.00024383,3]
[329520536,1718412707937,-196.09,0.00024384,2]
[329520537,1718412707960,-570.52,0.00024384,2]
[329520538,1718412707990,-169.83947953,0.00024452,2]
[329520539,1718412708005,-1325.88313213,0.0002446,2]
[329520540,1718412708019,-153.25500121,0.00024474,2]
[329520541,1718412708031,-152.89017849,0.00024492,2]
[329520542,1718412708044,-843.87971532,0.000245,3]
[329520543,1718412708056,-152.89017849,0.00024614,2]
[329520544,1718412708068,-1325.88313213,0.00024644,2]
[329520545,1718412708086,-158.16647742,0.00024647,2]
[329520546,1718412708099,-397.59,0.00024655,3]
[329520547,1718412708113,-500.0,0.00024655,3]
[329520548,1718412708126,-423.62,0.00024655,3]
[329520549,1718412708137,-500.0,0.00024655,3]
[329520550,1718412708150,-500.0,0.00024655,3]
[329520551,1718412708164,-500.0,0.00024655,3]
[329520552,1718412708175,-500.0,0.00024655,3]
[329520553,1718412708188,-500.0,0.00024655,3]
[329520554,1718412708213,-500.0,0.00024655,3]
[329520555,1718412708237,-500.0,0.00024655,3]
[329520556,1718412708254,-500.0,0.00024655,3]
[329520557,1718412708267,-500.0,0.00024657,3]
[329520558,1718412708299,-1622.23,0.00024657,3]
[329520559,1718412708360,-500.0,0.00024657,3]
[329520560,1718412708404,-500.0,0.00024657,3]
[329520561,1718412708446,-1512.33,0.00024657,3]
[329520562,1718412708474,-500.0,0.00024657,3]
[329520563,1718412708498,-500.0,0.00024657,3]
[329520564,1718412708532,-500.0,0.00024657,3]
[329520565,1718412708580,-500.0,0.00024657,3]
[329520566,1718412708613,-500.0,0.00024657,3]
[329520567,1718412708637,-612.35,0.00024657,3]
[329520568,1718412708685,-500.0,0.00024657,3]
[329520569,1718412708712,-1630.03,0.00024657,3]
[329520570,1718412708747,-270.1,0.00024657,3]
[329520571,1718412708759,-500.0,0.00024657,3]
[329520572,1718412708793,-704.79,0.00024657,3]
[329520573,1718412708858,-173.47,0.00024657,3]
[329520574,1718412708880,-535.49494087,0.00024657,3]
[329520575,1718412708894,-500.0,0.00024657,3]
[329520576,1718412708928,-519.91,0.00024657,3]
[329520577,1718412708984,-562.19,0.00024657,3]
[329520578,1718412709036,-528.56,0.00024657,3]
[329520579,1718412709067,-586.94,0.00024657,3]
[329520580,1718412709088,-500.0,0.00024657,3]
[329520581,1718412709112,-500.0,0.00024657,3]
[329520582,1718412709284,-500.0,0.00024657,3]
[329520583,1718412709301,-1018.16,0.00024657,3]
[329520584,1718412709341,-500.0,0.00024657,3]
[329520585,1718412709352,-500.0,0.00024657,3]
[329520586,1718412709372,-589.32,0.00024657,3]
[329520587,1718412709385,-1610.28,0.00024657,3]
[329520588,1718412709414,-1000.0,0.00024658,2]
[329520589,1718412709436,-1000.0,0.00024658,2]
[329520590,1718412709448,-1000.0,0.00024658,2]
[329520591,1718412709460,-1000.0,0.00024658,2]
[329520592,1718412709475,-1000.0,0.00024658,2]
[329520593,1718412709487,-1000.0,0.00024658,2]
[329520594,1718412709500,-1000.0,0.00024658,2]
[329520595,1718412709512,-1000.0,0.00024658,2]
[329520596,1718412709525,-1000.0,0.00024658,2]
[329520597,1718412709556,-1000.0,0.00024658,2]
[329520598,1718412709566,-1000.0,0.00024658,2]
[329520599,1718412709600,-1000.0,0.00024658,2]
[329520600,1718412709613,-1000.0,0.00024658,2]
[329520601,1718412709623,-1000.0,0.00024658,2]
[329520602,1718412709648,-1000.0,0.00024658,2]
[329520603,1718412709662,-1000.0,0.00024658,2]
[329520604,1718412709688,-1000.0,0.00024658,2]
[329520605,1718412709699,-1000.0,0.00024658,2]
[329520606,1718412709714,-1000.0,0.00024658,2]
[329520607,1718412709724,-1000.0,0.00024658,2]
[329520608,1718412709752,-1000.0,0.00024658,2]
[329520609,1718412709764,-1000.0,0.00024658,2]
[329520610,1718412709775,-1000.0,0.00024658,2]
[329520611,1718412709792,-1000.0,0.00024658,2]
[329520612,1718412709803,-1000.0,0.00024658,2]
[329520613,1718412709824,-1000.0,0.00024658,2]
[329520614,1718412709866,-1000.0,0.00024658,2]
[329520615,1718412709878,-1000.0,0.00024658,2]
[329520616,1718412709893,-1000.0,0.00024658,2]
[329520617,1718412709910,-1000.0,0.00024658,2]
[329520618,1718412709940,-1000.0,0.00024658,2]
[329520619,1718412709953,-1000.0,0.00024658,2]
[329520620,1718412709966,-1057.0,0.00024658,2]
[329520621,1718412709987,-8494.61,0.00024658,4]
[329520622,1718412709998,-243.6,0.00024658,4]
[329520623,1718412710009,-357.56206506,0.00024659,2]
[329520624,1718412710019,-1325.88313213,0.00024674,2]
[329520625,1718412710057,-150.0,0.00024694,2]
[329520626,1718412710067,-474.87,0.000247,2]
[329520627,1718412710121,-160.3497047,0.000247,2]
[329520628,1718412710156,-357.56206506,0.00024716,2]
[329520629,1718412710169,-155.26097923,0.00024727,2]
[329520630,1718412710193,-151.21954677,0.00024742,2]
[329520631,1718412710205,-357.56206506,0.00024758,2]
[329520632,1718412710225,-151.21954677,0.00024759,2]
[329520633,1718412710260,-357.56206506,0.00024761,2]
[329520634,1718412710285,-150.0,0.00024769,2]
[329520635,1718412710313,-32821.17555182,0.00024798,2]
[329520636,1718412710345,-32821.17555182,0.00024798,2]
[329520637,1718412710358,-1217.04896836,0.00024799,2]
[329520638,1718412710371,-1217.0489683,0.00024799,2]
[329520639,1718412710385,-1217.0489683,0.00024799,2]
[329520640,1718412710428,-1217.0489683,0.00024799,2]
[329520641,1718412710457,-1217.0489683,0.00024799,2]
[329520642,1718412710520,-1217.0489683,0.00024799,2]
[329520643,1718412710575,-1217.0489683,0.00024799,2]
[329520644,1718412710594,-1217.0489683,0.00024799,2]
[329520645,1718412710622,-357.56206506,0.0002482,2]
[329520646,1718412710649,-153.25500121,0.0002486,2]
[329520647,1718412710677,-151.21954677,0.00024886,2]
[329520648,1718412710699,-6803.82836973,0.000249,2]
[329520649,1718412710726,-274.66,0.000249,2]
[329520650,1718412710750,-200.0,0.000249,9]
[329520651,1718412710761,-165.97421404,0.00024907,2]
[329520652,1718412710775,-177.21,0.00024929,3]
[329520653,1718412710807,-500.0,0.00024929,3]
[329520654,1718412710832,-500.0,0.00024929,3]
[329520655,1718412710870,-500.0,0.00024929,3]
[329520656,1718412710904,-500.0,0.00024929,3]
[329520657,1718412710918,-500.0,0.00024929,3]
[329520658,1718412710967,-500.0,0.00024929,3]
[329520659,1718412710981,-500.0,0.00024929,3]
[329520660,1718412711018,-277.91,0.00024929,3]
[329520661,1718412711030,-500.0,0.00024931,3]
[329520662,1718412711068,-1622.23,0.00024931,3]
[329520663,1718412711088,-500.0,0.00024931,3]
[329520664,1718412711110,-500.0,0.00024931,3]
[329520665,1718412711132,-1512.33,0.00024931,3]
[329520666,1718412711156,-500.0,0.00024931,3]
[329520667,1718412711198,-500.0,0.00024931,3]
[329520668,1718412711209,-500.0,0.00024931,3]
[329520669,1718412711225,-201.1330928,0.00024931,3]
[329520670,1718412711256,-500.0,0.00024931,3]
[329520671,1718412711268,-612.35,0.00024931,3]
[329520672,1718412711297,-500.0,0.00024931,3]
[329520673,1718412711336,-1630.03,0.00024931,3]
[329520674,1718412711354,-500.0,0.00024931,3]
[329520675,1718412711376,-704.79,0.00024931,3]
[329520676,1718412711394,-500.0,0.00024931,3]
[329520677,1718412711406,-519.91,0.00024931,3]
[329520678,1718412711436,-562.19,0.00024931,3]
[329520679,1718412711446,-528.56,0.00024931,3]
[329520680,1718412711457,-500.0,0.00024931,3]
[329520681,1718412711468,-586.94,0.00024931,3]
[329520682,1718412711479,-500.0,0.00024931,3]
[329520683,1718412711540,-500.0,0.00024931,3]
[329520684,1718412711598,-1018.16,0.00024931,3]
[329520685,1718412711620,-500.0,0.00024931,3]
[329520686,1718412711648,-500.0,0.00024931,3]
[329520687,1718412711674,-589.32,0.00024931,3]
[329520688,1718412711686,-1610.28,0.00024931,3]
[329520689,1718412711713,-1325.88313213,0.0002494,2]
[329520690,1718412711725,-152.89017849,0.00024979,2]
[329520691,1718412711737,-155.0,0.00024991,2]
[329520692,1718412711761,-150.0,0.00024999,2]
[329520693,1718412711772,-833.76716776,0.00025,2]
[329520694,1718412711798,-155.0,0.00025,2]
[329520695,1718412711810,-931.33430512,0.00025,2]
[329520696,1718412711827,-27795.62834642,0.00025,2]
[329520697,1718412711839,-707.20018038,0.00025,2]
[329520698,1718412711857,-326.32284748,0.00025,2]
[329520699,1718412711909,-1350.0,0.00025,2]
[329520700,1718412711921,-155.0,0.00025,2]
[329520701,1718412711934,-326.45039702,0.00025,2]
[329520702,1718412711965,-225.42116399,0.00025,2]
[329520703,1718412711976,-159.24549886,0.00025,2]
[329520704,1718412712005,-1278.16399151,0.00025,2]
[329520705,1718412712029,-1354875.66601357,0.00025,2]
[329520706,1718412712061,-155.0,0.00025,2]
[329520707,1718412712072,-152.75262365,0.00025005,2]
[329520708,1718412712096,-153.25500121,0.00025023,2]
[329520709,1718412712112,-171.2344305,0.00025039,2]
[329520710,1718412712123,-230.57377979,0.00025093,2]
[329520711,1718412712137,-1103.28,0.000251,2]
[329520712,1718412712168,-257.5585201,0.00025108,2]
[329520713,1718412712179,-155.15668265,0.00025135,2]
[329520714,1718412712191,-153.54318877,0.00025139,2]
[329520715,1718412712202,-1325.88313213,0.00025139,2]
[329520716,1718412712237,-153.68176296,0.0002515,2]
[329520717,1718412712251,-500.0,0.00025203,3]
[329520718,1718412712272,-427.29552892,0.00025203,3]
[329520719,1718412712290,-500.0,0.00025203,3]
[329520720,1718412712302,-500.0,0.00025203,3]
[329520721,1718412712317,-500.0,0.00025203,3]
[329520722,1718412712347,-500.0,0.00025203,3]
[329520723,1718412712373,-500.0,0.00025205,3]
[329520724,1718412712386,-1622.23,0.00025205,3]
[329520725,1718412712398,-339.23581968,0.00025205,3]
[329520726,1718412712410,-500.0,0.00025205,3]
[329520727,1718412712423,-1512.33,0.00025205,3]
[329520728,1718412712438,-238.08559192,0.00025205,3]
[329520729,1718412712451,-500.0,0.00025205,3]
[329520730,1718412712465,-500.0,0.00025205,3]
[329520731,1718412712487,-294.33552773,0.00025205,3]
[329520732,1718412712500,-612.35,0.00025205,3]
[329520733,1718412712512,-1630.03,0.00025205,3]
[329520734,1718412712554,-500.0,0.00025205,3]
[329520735,1718412712585,-704.79,0.00025205,3]
[329520736,1718412712612,-500.0,0.00025205,3]
[329520737,1718412712634,-519.91,0.00025205,3]
[329520738,1718412712648,-562.19,0.00025205,3]
[329520739,1718412712662,-528.56,0.00025205,3]
[329520740,1718412712697,-500.0,0.00025205,3]
[329520741,1718412712730,-586.94,0.00025205,3]
[329520742,1718412712746,-500.0,0.00025205,3]
[329520743,1718412712772,-500.0,0.00025205,3]
[329520744,1718412712800,-1018.16,0.00025205,3]
[329520745,1718412712842,-500.0,0.00025205,3]
[329520746,1718412712901,-500.0,0.00025205,3]
[329520747,1718412712920,-589.32,0.00025205,3]
[329520748,1718412712938,-1610.28,0.00025205,3]
[329520749,1718412712956,-1000.0,0.00025205,2]
[329520750,1718412712973,-257.5585201,0.00025209,2]
[329520751,1718412712984,-155.64077264,0.00025213,2]
[329520752,1718412713040,-5983.08124322,0.00025221,2]
[329520753,1718412713051,-230.57377979,0.00025227,2]
[329520754,1718412713064,-1325.88313213,0.0002523,2]
[329520755,1718412713080,-155.15668265,0.00025237,2]